bitfinex-derivatives/quotes_BTCF0:USTF0_20250127
["timestamp","ask_amount","ask_price","bid_price","bid_amount"]
[1738003101083,0.201548,99267.0,99263.0,0.00015109]
[1738003101283,0.201553,99265.0,99263.0,0.00015109]
[1738003101486,0.201553,99265.0,99260.0,0.26503511]
[1738003101780,0.201547,99267.0,99260.0,0.26503511]
[1738003101981,0.201547,99267.0,99263.0,0.205555]
[1738003102489,0.201553,99264.0,99263.0,0.001]
[1738003103088,0.85695693,99264.0,99263.0,0.001]
[1738003103587,0.65540393,99264.0,99249.0,0.29897204]
[1738003103783,0.65540393,99264.0,99253.0,0.201575]
[1738003104087,0.65540393,99264.0,99263.0,0.002]
[1738003104088,0.85695693,99264.0,99263.0,0.002]
[1738003105278,0.65540393,99264.0,99250.0,0.14566802]
[1738003105673,0.201578,99254.0,99253.0,0.201575]
[1738003106678,0.201579,99251.0,99250.0,0.14566802]
[1738003107080,0.201579,99251.0,99244.0,0.201594]
[1738003107280,0.201579,99251.0,99246.0,0.201588]
[1738003107788,0.201579,99251.0,99248.0,0.201584]
[1738003107995,0.201579,99251.0,99243.0,0.01382353]
[1738003108193,0.201579,99251.0,99249.0,0.201583]
[1738003108780,0.26221884,99251.0,99249.0,0.201583]
[1738003109187,0.26321884,99251.0,99244.0,0.005]
[1738003109389,0.201583,99250.0,99249.0,0.201583]
[1738003110379,0.201583,99250.0,99245.0,0.201591]
[1738003110787,0.201585,99249.0,99245.0,0.201591]
[1738003111389,0.06063984,99250.0,99249.0,0.003]
[1738003111589,0.26222284,99250.0,99249.0,0.003]
[1738003111783,0.06063984,99250.0,99249.0,0.565383]
[1738003112994,0.26222084,99250.0,99249.0,0.3608]
[1738003113493,0.201587,99247.0,99246.0,0.201588]
[1738003113885,0.06063984,99250.0,99245.0,0.003]
[1738003114088,0.562389,99246.0,99245.0,0.003]
[1738003114489,0.201596,99243.0,99242.0,1.5014]
[1738003114691,0.3608,99246.0,99237.0,0.21168139]
[1738003115004,0.201607,99238.0,99233.0,0.003]
[1738003115193,0.20161,99236.0,99233.0,0.003]
[1738003115683,0.20161,99236.0,99234.0,0.01013569]
[1738003115884,0.20161,99236.0,99233.0,0.003]
[1738003117389,0.29460393,99243.0,99228.0,0.3608]
[1738003117693,0.20161,99236.0,99235.0,0.002]
[1738003118092,0.20161,99236.0,99231.0,0.201619]
[1738003118093,0.29460393,99243.0,99231.0,0.201619]
[1738003118293,0.20161,99236.0,99235.0,0.001]
[1738003118799,0.29460393,99243.0,99236.0,0.20161]
[1738003118983,0.201602,99240.0,99237.0,0.562407]
[1738003119184,0.29460393,99243.0,99242.0,0.201598]
[1738003119385,0.21347683,99250.0,99237.0,0.1792795]
[1738003119587,0.21347683,99250.0,99240.0,0.09754859]
[1738003119891,0.201592,99245.0,99240.0,0.09754859]
[1738003120095,0.201594,99244.0,99240.0,0.09754859]
[1738003120297,0.201597,99243.0,99240.0,0.09754859]
[1738003120890,0.201597,99243.0,99240.0,0.29914959]
[1738003121191,0.25060487,99243.0,99240.0,0.29914959]
[1738003121699,0.25060487,99243.0,99240.0,0.202601]
[1738003122199,0.04900787,99243.0,99242.0,0.201598]
[1738003123496,0.18205114,99253.0,99242.0,1.5]
[1738003123692,0.18205114,99253.0,99252.0,0.201577]
[1738003124207,0.04901172,99244.0,99243.0,0.201596]
[1738003125703,0.05001172,99244.0,99243.0,0.206596]
[1738003126793,0.18205114,99253.0,99252.0,0.201577]
[1738003127998,0.18205114,99258.0,99257.0,0.201567]
[1738003128291,0.18205114,99258.0,99257.0,0.562367]
[1738003128496,0.00015109,99260.0,99257.0,0.562367]
[1738003128497,0.00015109,99260.0,99259.0,0.201563]
[1738003129196,0.00015109,99260.0,99259.0,1.701563]
[1738003130906,0.00015109,99260.0,99259.0,1.704563]
[1738003131903,0.15061606,99260.0,99259.0,1.704563]
[1738003133898,0.15061606,99260.0,99259.0,0.204563]
[1738003135404,0.00015109,99260.0,99259.0,0.204563]
[1738003135594,0.00015109,99260.0,99259.0,0.565363]
[1738003136292,0.00015109,99260.0,99259.0,2.065363]
[1738003137000,0.15046497,99270.0,99259.0,2.2233]
[1738003137201,0.15046497,99270.0,99269.0,0.562343]
[1738003137522,0.15046497,99270.0,99269.0,0.201543]
[1738003137707,0.15046497,99270.0,99260.0,0.45704859]
[1738003138107,0.15046497,99270.0,99269.0,0.201543]
[1738003140115,0.36095109,99275.0,99260.0,0.46004859]
[1738003140305,0.36095109,99275.0,99274.0,0.201533]
[1738003140606,0.00015109,99275.0,99274.0,1.701533]
[1738003140809,0.36095109,99275.0,99260.0,0.36967195]
[1738003141008,0.3608,99261.0,99260.0,0.3595]
[1738003141203,0.3608,99261.0,99260.0,0.3625]
[1738003141409,0.3608,99265.0,99263.0,0.201555]
[1738003141612,0.3608,99265.0,99260.0,0.3625]
[1738003141806,0.3608,99265.0,99258.0,0.01010576]
[1738003142003,0.3608,99265.0,99264.0,0.201553]
[1738003143110,0.3608,99265.0,99259.0,1.5014]
[1738003143317,0.201569,99256.0,99255.0,0.00015109]
[1738003143504,0.3608,99262.0,99260.0,0.003]
[1738003143815,0.275672,99255.0,99241.0,1.5]
[1738003144113,0.0711,99254.0,99250.0,0.20158]
[1738003144305,0.0711,99254.0,99241.0,1.5]
[1738003144306,0.0711,99254.0,99241.0,1.5014]
[1738003144506,0.0711,99254.0,99249.0,0.201583]
[1738003144708,0.3608,99253.0,99249.0,0.201583]
[1738003144910,0.562375,99253.0,99249.0,0.201583]
[1738003145719,0.3608,99253.0,99243.0,2.068074]
[1738003145901,0.201589,99246.0,99243.0,2.066594]
[1738003146313,0.3608,99253.0,99243.0,2.066594]
[1738003146515,0.3608,99253.0,99245.0,0.201592]
[1738003146709,0.201584,99249.0,99245.0,0.201592]
[1738003147411,0.201584,99249.0,99246.0,0.201589]
[1738003147711,0.0714,99252.0,99243.0,1.8664]
[1738003147901,0.0714,99252.0,99245.0,0.002]
[1738003148307,0.0714,99252.0,99251.0,0.201579]
[1738003149111,0.0714,99252.0,99251.0,1.701579]
[1738003149312,0.272977,99252.0,99251.0,1.5]
[1738003149618,0.201587,99248.0,99246.0,0.002]
[1738003149828,0.201587,99247.0,99246.0,0.002]
[1738003150319,0.0714,99252.0,99245.0,0.005]
[1738003150320,0.0724,99252.0,99245.0,0.005]
[1738003150510,0.0724,99252.0,99245.0,0.206591]
[1738003150712,0.273978,99252.0,99245.0,0.206591]
[1738003150921,0.273978,99252.0,99243.0,1.8664]
[1738003150922,0.001,99248.0,99246.0,0.206589]
[1738003151217,0.001,99248.0,99247.0,0.201587]
[1738003151424,0.201586,99248.0,99243.0,1.8664]
[1738003151612,0.201586,99248.0,99245.0,0.005]
[1738003152009,0.201586,99248.0,99246.0,1.5]
[1738003152210,0.202586,99248.0,99246.0,1.505]
[1738003152719,0.201587,99247.0,99246.0,1.505]
[1738003152924,0.201587,99247.0,99246.0,0.005]
[1738003153223,0.201594,99244.0,99243.0,1.7497]
[1738003153413,0.201594,99244.0,99243.0,1.6316]
[1738003154913,0.201594,99244.0,99243.0,1.836196]
[1738003155115,0.37103445,99247.0,99246.0,0.201589]
[1738003155517,0.3608,99247.0,99246.0,1.701589]
[1738003156024,0.3608,99265.0,99246.0,1.701589]
[1738003156025,0.201566,99258.0,99253.0,0.201575]
[1738003156421,0.01010904,99260.0,99253.0,0.201575]
[1738003156818,0.201564,99259.0,99253.0,0.201575]
[1738003157623,0.201567,99257.0,99253.0,0.201575]
[1738003158026,0.08684952,99262.0,99253.0,0.201575]
[1738003158027,0.07225109,99254.0,99253.0,0.201575]
[1738003158419,0.00115109,99254.0,99253.0,0.201575]
[1738003160620,0.00015109,99254.0,99253.0,0.201575]
[1738003161234,0.0771,99268.0,99266.0,0.201548]
[1738003161530,0.0771,99268.0,99267.0,0.201547]
[1738003161828,0.0771,99268.0,99258.0,0.0741]
[1738003162127,0.3608,99259.0,99250.0,0.3595]
[1738003162332,0.562379,99251.0,99250.0,0.3595]
[1738003162534,0.3608,99251.0,99245.0,0.00015109]
[1738003162716,0.56238,99251.0,99245.0,0.00015109]
[1738003162921,0.56238,99251.0,99248.0,0.201585]
[1738003163329,0.3608,99251.0,99245.0,0.00015109]
[1738003163530,0.3608,99251.0,99250.0,0.201581]
[1738003164229,0.201569,99257.0,99250.0,0.20158]
[1738003164417,0.20157,99256.0,99245.0,0.20174209]
[1738003164621,0.3608,99257.0,99245.0,0.00015109]
[1738003164827,0.201569,99256.0,99252.0,0.201577]
[1738003165533,0.562367,99257.0,99251.0,0.201579]
[1738003165933,0.5724082,99257.0,99247.0,0.09754859]
[1738003166124,0.5724082,99257.0,99253.0,0.201574]
[1738003166334,0.562367,99257.0,99247.0,0.09754859]
[1738003166637,0.201585,99248.0,99247.0,0.09754859]
[1738003166931,0.201589,99246.0,99245.0,0.00015109]
[1738003167827,0.276189,99246.0,99245.0,0.00015109]
[1738003170741,0.3608,99248.0,99245.0,0.00015109]
[1738003170924,0.15010565,99251.0,99249.0,0.201583]
[1738003171130,0.15010565,99251.0,99250.0,0.201581]
[1738003171433,0.35168465,99251.0,99246.0,0.201589]
[1738003171626,0.0727,99250.0,99246.0,0.201589]
[1738003171825,0.201589,99246.0,99245.0,0.00015109]
[1738003172333,0.3608,99247.0,99245.0,0.00015109]
[1738003173239,0.201589,99246.0,99245.0,0.00015109]
[1738003173938,0.3608,99247.0,99245.0,0.00015109]
[1738003174138,0.201589,99246.0,99245.0,0.00015109]
[1738003178539,0.201589,99246.0,99238.0,1.5014]
[1738003178741,0.562404,99239.0,99238.0,1.5]
[1738003179239,0.3608,99239.0,99230.0,0.09754859]
[1738003179426,0.3608,99239.0,99232.0,0.20312946]
[1738003179626,0.201608,99237.0,99233.0,1.5]
[1738003179831,0.3608,99239.0,99233.0,1.701616]
[1738003180342,0.3608,99239.0,99233.0,1.5]
[1738003180539,0.562404,99239.0,99233.0,1.5]
[1738003180749,0.3608,99239.0,99233.0,1.5]
[1738003181242,0.3618,99239.0,99233.0,1.5]
[1738003184843,0.201614,99234.0,99232.0,0.00151146]
[1738003186441,0.3618,99239.0,99232.0,0.00151146]
[1738003186943,0.001,99234.0,99232.0,0.00151146]
[1738003187547,0.3618,99239.0,99232.0,0.00151146]
[1738003188049,0.3608,99239.0,99232.0,0.00151146]
[1738003188257,0.001,99234.0,99232.0,0.00151146]
[1738003189353,0.09009633,99233.0,99232.0,0.00151146]
[1738003190956,0.09109633,99233.0,99232.0,0.00151146]
[1738003192246,0.001,99233.0,99232.0,0.00151146]
[1738003195959,0.00087104,99233.0,99232.0,0.00151146]
[1738003196849,0.15016604,99242.0,99241.0,0.2016]
[1738003197055,0.21014791,99265.0,99255.0,0.050392]
[1738003197262,0.21014791,99265.0,99264.0,0.201553]
[1738003197647,0.21014791,99265.0,99264.0,1.701553]
[1738003199563,0.09019062,99270.0,99264.0,1.5]
[1738003199862,0.09019062,99270.0,99269.0,0.201543]
[1738003200550,0.09019062,99270.0,99269.0,1.701543]
[1738003201168,0.09019062,99270.0,99263.0,0.37647853]
[1738003201349,0.201547,99267.0,99258.0,0.561063]
[1738003201556,0.18773921,99270.0,99258.0,0.3595]
[1738003201752,0.201545,99268.0,99259.0,0.201563]
[1738003202064,0.09119062,99270.0,99258.0,0.3595]
[1738003202259,0.09119062,99270.0,99268.0,0.201545]
[1738003202761,0.09219062,99270.0,99268.0,0.201545]
[1738003203066,0.09019062,99270.0,99268.0,0.201545]
[1738003203561,0.09019062,99270.0,99265.0,0.3608]
[1738003203748,0.09019062,99270.0,99269.0,0.201543]
[1738003204065,0.09119062,99270.0,99269.0,0.201543]
[1738003204369,0.09119062,99270.0,99269.0,1.701543]
[1738003204551,0.09119062,99270.0,99269.0,1.5]
[1738003204748,0.09119062,99270.0,99256.0,0.3595]
[1738003204749,0.201567,99257.0,99256.0,0.3595]
[1738003204948,0.201567,99257.0,99242.0,0.18078303]
[1738003204949,0.201569,99256.0,99242.0,0.18078303]
[1738003205166,0.3608,99249.0,99242.0,0.18078303]
[1738003206057,0.201586,99248.0,99242.0,0.18078303]
[1738003206863,0.3608,99249.0,99248.0,0.201585]
[1738003207172,0.09019062,99258.0,99257.0,0.201567]
[1738003207465,0.09034171,99258.0,99257.0,1.701567]
[1738003208752,0.09034171,99258.0,99257.0,1.702567]
[1738003209559,0.09034171,99258.0,99257.0,1.704567]
[1738003210065,0.00015109,99258.0,99257.0,1.704567]
[1738003210561,0.00015109,99258.0,99257.0,1.7200208]
[1738003210752,1e-08,99258.0,99257.0,1.7200208]
[1738003211063,0.21014791,99300.0,99278.0,0.050381]
[1738003211266,0.077,99299.0,99298.0,0.201484]
[1738003211463,0.077,99299.0,99298.0,0.562284]
[1738003212164,0.21014791,99300.0,99298.0,0.562284]
[1738003212468,0.00015109,99308.0,99305.0,0.20147]
[1738003212767,0.00299,99322.0,99318.0,0.201443]
[1738003213071,0.0766,99335.0,99318.0,1.8608]
[1738003213255,0.0766,99335.0,99324.0,0.201431]
[1738003213860,0.36095109,99334.0,99324.0,0.201431]
[1738003214168,0.201419,99330.0,99319.0,0.7217]
[1738003214358,0.36095109,99334.0,99323.0,0.201432]
[1738003214667,0.00015109,99334.0,99333.0,0.201413]
[1738003214870,0.00015109,99334.0,99333.0,0.562213]
[1738003216059,0.00015109,99334.0,99333.0,2.062213]
[1738003216266,0.00015109,99334.0,99333.0,2.066213]
[1738003216655,0.00015109,99334.0,99333.0,2.062213]
[1738003216860,0.00015109,99334.0,99333.0,2.067213]
[1738003217671,0.00015109,99334.0,99333.0,2.065213]
[1738003217868,0.00015109,99334.0,99333.0,2.067213]
[1738003218261,0.00299,99337.0,99333.0,0.3658]
[1738003218464,0.00299,99337.0,99336.0,0.201407]
[1738003218966,0.00299,99337.0,99334.0,0.3608]
[1738003219356,0.00299,99337.0,99335.0,0.201408]
[1738003219571,0.00015101,99345.0,99344.0,0.201391]
[1738003219759,0.00015101,99345.0,99344.0,0.562191]
[1738003221173,0.076,99358.0,99344.0,0.3628]
[1738003221363,0.076,99358.0,99351.0,0.201376]
[1738003222075,0.076,99358.0,99351.0,1.701376]
[1738003222456,0.076,99358.0,99351.0,0.201376]
[1738003222661,0.076,99358.0,99351.0,0.203376]
[1738003222976,0.076,99358.0,99351.0,0.21941959]
[1738003223773,0.076,99358.0,99351.0,0.203376]
[1738003223962,0.076,99358.0,99351.0,0.205376]
[1738003224359,0.3608,99354.0,99347.0,0.0157209]
[1738003224564,0.3608,99354.0,99336.0,0.3595]
[1738003224760,0.3608,99345.0,99340.0,0.09754859]
[1738003224974,0.0718,99344.0,99336.0,0.3595]
[1738003225275,0.00299,99352.0,99343.0,0.3608]
[1738003225571,0.00299,99352.0,99350.0,0.201378]
[1738003226569,0.00299,99352.0,99351.0,0.3608]
[1738003227764,0.00399,99352.0,99351.0,0.3608]
[1738003228382,0.00499,99352.0,99351.0,0.3608]
[1738003229474,0.1462,99373.0,99360.0,0.201358]
[1738003229676,0.1462,99373.0,99360.0,0.3608]
[1738003229869,0.1462,99373.0,99366.0,0.201346]
[1738003230374,0.0758,99381.0,99380.0,0.201318]
[1738003230576,0.0758,99381.0,99380.0,0.562118]
[1738003230979,0.14635101,99390.0,99389.0,0.201299]
[1738003231282,0.14635101,99390.0,99389.0,0.562099]
[1738003231882,0.3608,99410.0,99396.0,0.201285]
[1738003232183,0.0738,99409.0,99408.0,0.201261]
[1738003232372,0.0738,99409.0,99408.0,0.562061]
[1738003232679,0.0738,99409.0,99397.0,1.5014]
[1738003232680,0.201271,99403.0,99397.0,1.5014]
[1738003232880,0.4346,99409.0,99391.0,0.3595]
[1738003233072,0.201297,99390.0,99389.0,0.001]
[1738003233274,0.004,99390.0,99389.0,0.001]
[1738003233675,0.201316,99381.0,99380.0,0.00015093]
[1738003233982,0.562116,99381.0,99380.0,0.00015093]
[1738003234286,0.3608,99381.0,99371.0,0.62884]
[1738003234484,0.201324,99377.0,99371.0,0.49776]
[1738003234673,0.201334,99372.0,99371.0,0.37888]
[1738003234867,0.562134,99372.0,99371.0,0.37888]
[1738003235578,0.0716,99380.0,99371.0,0.37888]
[1738003236572,0.0716,99380.0,99371.0,0.37988]
[1738003236776,0.201333,99373.0,99371.0,0.37988]
[1738003236980,0.3608,99372.0,99362.0,0.00015093]
[1738003237184,0.201352,99363.0,99362.0,0.00015093]
[1738003238784,0.0716,99367.0,99362.0,0.00015093]
[1738003239090,0.20135,99365.0,99362.0,0.00015093]
[1738003239291,0.0716,99367.0,99362.0,0.00015093]
[1738003239591,0.201352,99363.0,99362.0,0.00015093]
[1738003239893,0.202352,99363.0,99362.0,0.00015093]
[1738003240383,0.001,99363.0,99362.0,0.00015093]
[1738003240575,0.3608,99372.0,99371.0,0.201336]
[1738003240780,0.1516,99380.0,99376.0,0.201325]
[1738003240983,0.1516,99380.0,99377.0,0.201323]
[1738003241183,0.0795,99389.0,99370.0,0.09754859]
[1738003241184,0.0795,99389.0,99378.0,0.20132]
[1738003241487,0.0795,99389.0,99379.0,0.201319]
[1738003241979,0.0795,99389.0,99380.0,1.5]
[1738003242376,0.1511,99393.0,99380.0,1.5]
[1738003242886,0.08,99393.0,99380.0,1.5]
[1738003243387,0.0711,99405.0,99380.0,1.8758638]
[1738003243590,0.0711,99405.0,99395.0,0.1458401]
[1738003243790,0.20127,99404.0,99395.0,0.1458401]
[1738003243985,0.0711,99405.0,99396.0,0.201285]
[1738003244386,0.0711,99405.0,99395.0,0.1458401]
[1738003244887,0.0711,99405.0,99397.0,0.201283]
[1738003245084,0.0711,99405.0,99398.0,0.201281]
[1738003245280,0.0711,99405.0,99391.0,0.00015093]
[1738003245592,0.201275,99401.0,99391.0,0.01659486]
[1738003245783,0.0721,99405.0,99391.0,0.00015093]
[1738003246088,0.3608,99403.0,99391.0,0.00015093]
[1738003247192,0.201285,99397.0,99391.0,0.00015093]
[1738003247375,0.562071,99403.0,99392.0,0.201293]
[1738003247693,0.201277,99400.0,99398.0,0.18012774]
[1738003248785,0.3608,99403.0,99398.0,0.18012774]
[1738003249188,0.003,99400.0,99398.0,0.18012774]
[1738003249385,0.204277,99400.0,99398.0,0.18012774]
[1738003249592,0.201279,99399.0,99398.0,0.18012774]
[1738003250395,0.004,99400.0,99398.0,0.18012774]
[1738003250894,0.201279,99399.0,99398.0,0.18012774]
[1738003251480,0.001,99399.0,99396.0,0.18012774]
[1738003251895,0.201283,99397.0,99396.0,0.18012774]
[1738003252383,0.201293,99392.0,99391.0,0.24104404]
[1738003252590,0.3608,99392.0,99384.0,0.30130505]
[1738003252787,0.201308,99385.0,99384.0,0.30130505]
[1738003253288,0.281408,99385.0,99384.0,0.30130505]
[1738003254490,0.201324,99377.0,99376.0,0.36156606]
[1738003254692,0.201326,99376.0,99375.0,0.00015093]
[1738003256998,0.203326,99376.0,99375.0,0.00015093]
[1738003257795,0.211326,99376.0,99375.0,0.00015093]
[1738003258485,0.207326,99376.0,99375.0,0.00015093]
[1738003258687,0.207326,99376.0,99375.0,0.20147893]
[1738003258884,0.207326,99376.0,99375.0,0.00015093]
[1738003259102,0.211326,99376.0,99375.0,0.00015093]
[1738003259298,0.208326,99376.0,99375.0,0.00015093]
[1738003259693,0.501326,99376.0,99375.0,0.00400093]
[1738003259894,0.201404,99339.0,99338.0,0.201402]
[1738003260202,0.201409,99335.0,99334.0,0.149]
[1738003260407,0.201409,99335.0,99320.0,0.20156643]
[1738003260408,0.201427,99326.0,99320.0,0.00012843]
[1738003260602,0.201427,99326.0,99317.0,0.01684036]
[1738003260603,0.562227,99326.0,99317.0,0.01684036]
[1738003260902,0.862227,99326.0,99317.0,0.01684036]
[1738003261289,0.862227,99326.0,99325.0,0.24206606]
[1738003261603,0.562227,99326.0,99325.0,0.24206606]
[1738003262302,0.567227,99326.0,99325.0,0.24206606]
[1738003262802,0.568227,99326.0,99325.0,0.24206606]
[1738003263003,0.3668,99326.0,99318.0,0.0781]
[1738003263200,0.201431,99324.0,99318.0,0.0781]
[1738003264408,0.201431,99324.0,99322.0,0.201435]
[1738003264792,0.201431,99324.0,99323.0,1.503]
[1738003265189,0.004,99324.0,99316.0,0.00015101]
[1738003265408,0.562245,99317.0,99316.0,0.00015101]
[1738003266795,0.201445,99317.0,99316.0,0.00015101]
[1738003267598,0.202445,99317.0,99316.0,0.00015101]
[1738003268194,0.201445,99317.0,99316.0,0.00015101]
[1738003268510,0.301,99317.0,99308.0,0.003]
[1738003268804,0.562262,99309.0,99308.0,0.003]
[1738003269708,0.201522,99279.0,99277.0,0.00151086]
[1738003269903,0.562322,99279.0,99277.0,0.00151086]
[1738003270101,0.562322,99279.0,99272.0,0.0014]
[1738003270306,0.562322,99279.0,99269.0,0.01675617]
[1738003270610,0.562322,99279.0,99269.0,0.00015109]
[1738003271006,0.562322,99279.0,99278.0,0.005]
[1738003271896,0.57912082,99279.0,99278.0,0.005]
[1738003272100,0.57912082,99279.0,99278.0,0.006]
[1738003272712,0.58812082,99279.0,99278.0,0.005]
[1738003273017,0.59112082,99279.0,99278.0,0.003]
[1738003274410,0.58212082,99279.0,99278.0,0.003]
[1738003274595,0.38059882,99279.0,99243.0,0.074]
[1738003274906,0.201583,99249.0,99248.0,0.003]
[1738003275098,0.562383,99249.0,99248.0,0.003]
[1738003276414,0.565383,99249.0,99248.0,0.003]
[1738003277111,0.58200393,99249.0,99248.0,0.003]
[1738003283410,0.38042093,99249.0,99239.0,0.00015109]
[1738003283614,0.562402,99240.0,99239.0,0.00015109]
[1738003284205,0.562402,99240.0,99239.0,1.50015109]
[1738003284523,0.01962093,99249.0,99248.0,0.201585]
[1738003284721,0.36095109,99258.0,99254.0,0.201571]
[1738003285021,0.201567,99257.0,99255.0,0.075]
[1738003286025,0.00015109,99258.0,99256.0,0.201568]
[1738003286218,0.00015109,99258.0,99257.0,0.0759]
[1738003287226,0.00215109,99258.0,99257.0,0.0759]
[1738003287921,0.00715109,99258.0,99257.0,0.0759]
[1738003288418,0.20871609,99258.0,99257.0,0.0759]
[1738003288925,0.20771609,99258.0,99257.0,0.0759]
[1738003290106,0.00615109,99258.0,99257.0,0.0759]
[1738003291034,0.20771609,99258.0,99257.0,0.0759]
[1738003294629,0.201583,99249.0,99248.0,1.633]
[1738003294826,0.201583,99249.0,99248.0,1.6316]
[1738003295518,0.3608,99251.0,99248.0,1.6316]
[1738003295724,0.3608,99251.0,99250.0,0.201581]
[1738003296118,0.00515109,99258.0,99254.0,0.201573]
[1738003296613,0.00515109,99258.0,99248.0,1.633]
[1738003296614,0.20671709,99258.0,99255.0,0.201571]
[1738003297019,0.20171709,99258.0,99255.0,0.201571]
[1738003297214,0.00015109,99258.0,99249.0,0.3608]
[1738003297426,0.00015109,99258.0,99253.0,0.201574]
[1738003297631,0.00415109,99258.0,99253.0,0.201574]
[1738003298629,0.201568,99257.0,99253.0,0.201574]
[1738003298832,0.20157,99256.0,99249.0,0.3608]
[1738003299128,0.20157,99256.0,99251.0,0.201579]
[1738003299926,0.201573,99255.0,99251.0,0.201579]
[1738003300720,0.002,99256.0,99249.0,0.3608]
[1738003300933,0.201577,99253.0,99249.0,0.3608]
[1738003301131,0.201581,99250.0,99249.0,0.3608]
[1738003301334,0.201583,99249.0,99248.0,1.633]
[1738003301631,0.003,99255.0,99248.0,1.6316]
[1738003301835,0.002,99256.0,99251.0,0.3608]
[1738003302132,1e-08,99258.0,99251.0,0.3608]
[1738003302429,1e-08,99258.0,99257.0,0.201567]
[1738003302934,1e-08,99258.0,99254.0,0.201572]
[1738003303233,0.20156601,99258.0,99253.0,0.201575]
[1738003303439,1e-08,99258.0,99251.0,0.3608]
[1738003303733,0.201583,99249.0,99248.0,1.633]
[1738003303916,0.201583,99249.0,99248.0,1.6316]
[1738003305428,0.562383,99249.0,99248.0,1.6316]
[1738003306531,0.565383,99249.0,99248.0,1.6316]
[1738003309634,0.3638,99249.0,99248.0,1.833185]
[1738003310218,0.3638,99249.0,99248.0,1.6316]
[1738003310532,0.565383,99249.0,99248.0,1.6316]
[1738003311935,0.3638,99249.0,99248.0,1.833185]
[1738003312638,0.003,99249.0,99248.0,1.833185]
[1738003313533,0.003,99249.0,99248.0,3.333185]
[1738003313923,0.11910382,99258.0,99248.0,3.1316]
[1738003314123,0.11910382,99258.0,99257.0,0.201567]
[1738003314438,0.050372,99297.0,99254.0,0.3608]
[1738003314735,0.09752534,99280.0,99271.0,0.3608]
[1738003314937,0.201535,99273.0,99272.0,0.0754]
[1738003315137,0.201551,99265.0,99256.0,0.0754]
[1738003315434,0.201555,99263.0,99258.0,0.201565]
[1738003315934,0.3608,99264.0,99256.0,1.57688]
[1738003316134,0.201567,99257.0,99256.0,0.0754]
[1738003316636,0.201569,99256.0,99255.0,0.2209]
[1738003317630,0.001,99257.0,99255.0,0.2209]
[1738003317838,0.201568,99257.0,99255.0,0.2209]
[1738003318039,0.001,99256.0,99255.0,0.2209]
[1738003318239,0.202569,99256.0,99255.0,0.2209]
[1738003318435,0.001,99256.0,99251.0,0.00015109]
[1738003318737,0.201577,99252.0,99251.0,0.00015109]
[1738003318949,0.001,99256.0,99251.0,0.00015109]
[1738003319135,0.001,99256.0,99252.0,0.201576]
[1738003319322,0.201577,99252.0,99251.0,0.24167142]
[1738003320328,0.01394747,99256.0,99251.0,0.44324842]
[1738003320535,0.01394747,99256.0,99251.0,0.24167142]
[1738003320731,0.201575,99253.0,99251.0,0.24167142]
[1738003320931,0.002,99252.0,99251.0,0.24167142]
[1738003321130,0.002,99252.0,99251.0,0.24267142]
[1738003321343,0.201577,99252.0,99251.0,0.24267142]
[1738003322633,0.201577,99252.0,99251.0,0.00115109]
[1738003323139,0.203577,99252.0,99251.0,0.00115109]
[1738003323530,0.203577,99252.0,99251.0,0.00015109]
[1738003324340,0.206577,99252.0,99251.0,0.00015109]
[1738003324640,0.005,99252.0,99251.0,0.00015109]
[1738003324837,0.005,99252.0,99251.0,0.20173009]
[1738003325233,0.201551,99266.0,99259.0,0.201562]
[1738003325442,0.201556,99263.0,99260.0,0.1512]
[1738003325638,0.37519628,99270.0,99260.0,0.1512]
[1738003325639,0.47272162,99270.0,99261.0,1.5]
[1738003325837,0.37519628,99270.0,99261.0,1.5]
[1738003326142,0.37519628,99270.0,99260.0,0.1512]
[1738003326445,0.201559,99261.0,99260.0,0.1512]
[1738003326945,0.201552,99265.0,99260.0,0.1512]
[1738003327243,0.201558,99262.0,99260.0,0.1512]
[1738003327544,0.201559,99261.0,99260.0,0.1512]
[1738003328145,0.201559,99261.0,99260.0,0.0729]
[1738003328445,0.3608,99261.0,99253.0,0.0014]
[1738003328642,0.201577,99252.0,99251.0,0.00015109]
[1738003328941,0.3608,99255.0,99251.0,0.00015109]
[1738003329243,0.3628,99261.0,99252.0,0.3608]
[1738003329450,0.3628,99261.0,99251.0,0.00015109]
[1738003329753,0.002,99261.0,99252.0,0.3608]
[1738003329943,0.201573,99254.0,99252.0,0.3608]
[1738003330239,0.3608,99267.0,99251.0,0.00015109]
[1738003330447,0.201577,99252.0,99251.0,0.00015109]
[1738003330741,0.201577,99252.0,99251.0,0.00215109]
[1738003330946,0.3608,99257.0,99251.0,0.00215109]
[1738003331147,0.201569,99257.0,99251.0,0.20373009]
[1738003331348,0.201576,99253.0,99251.0,1.63375109]
[1738003331535,0.201577,99253.0,99251.0,1.63375109]
[1738003331735,0.20157,99256.0,99251.0,1.63375109]
[1738003332038,0.201565,99258.0,99251.0,1.83533009]
[1738003332236,0.201569,99256.0,99251.0,1.83433009]
[1738003332441,0.201577,99252.0,99251.0,1.63275109]
[1738003332662,0.01435763,99261.0,99251.0,1.63275109]
[1738003332663,0.3608,99259.0,99251.0,1.63275109]
[1738003332948,0.201577,99252.0,99251.0,1.63275109]
[1738003333651,0.202577,99252.0,99251.0,1.63275109]
[1738003333848,0.502577,99252.0,99251.0,0.89364103]
[1738003334051,0.3608,99230.0,99205.0,0.01008]
[1738003334256,0.44606,99252.0,99179.0,0.6036101]
[1738003334257,0.7216,99205.0,99179.0,0.6036101]
[1738003334441,0.923305,99189.0,99187.0,0.44502392]
[1738003335331,0.7216,99189.0,99181.0,0.49348208]
[1738003335637,0.201724,99180.0,99179.0,0.2170232]
[1738003335837,0.201724,99180.0,99179.0,0.16928007]
[1738003335838,0.562524,99180.0,99179.0,0.16928007]